fUSD/lending_fUSD_20240121
["ID","MTS","AMOUNT","RATE_DAILY","PERIOD"]
[312413440,1705863089057,-750.34,0.00042191,31]
[312413441,1705863089067,-500.0,0.00042191,31]
[312413442,1705863089077,-500.0,0.00042191,31]
[312413443,1705863089087,-1162.05,0.00042191,31]
[312413444,1705863089097,-848.05,0.00042191,31]
[312413445,1705863089106,-1048.21,0.00042191,31]
[312413446,1705863089116,-10000.0,0.00042191,31]
[312413447,1705863089126,-500.0,0.00042191,31]
[312413448,1705863089135,-500.0,0.00042191,31]
[312413449,1705863089145,-645.26,0.00042191,31]
[312413450,1705863089154,-730.17,0.00042191,31]
[312413451,1705863089164,-888.07,0.00042191,31]
[312413452,1705863089174,-1029.09,0.00042191,31]
[312413453,1705863089184,-500.0,0.00042191,2]
[312413454,1705863089193,-561.84,0.00042191,31]
[312413455,1705863089203,-500.0,0.00042191,31]
[312413456,1705863089213,-500.0,0.00042191,31]
[312413457,1705863089222,-500.0,0.00042191,31]
[312413458,1705863089234,-776.61,0.00042191,31]
[312413459,1705863089244,-508.85168173,0.00042191,31]
[312413460,1705863089254,-517.18784013,0.00042191,31]
[312413461,1705863089264,-579.77,0.00042191,31]
[312413462,1705863089275,-1041.57,0.00042191,31]
[312413463,1705863089286,-730.27,0.00042191,31]
[312413464,1705863089295,-780.43,0.00042191,31]
[312413465,1705863089305,-745.98,0.00042191,31]
[312413466,1705863089315,-1220.97,0.00042191,31]
[312413467,1705863089326,-938.59,0.00042191,31]
[312413468,1705863089336,-3118.19,0.00042191,31]
[312413469,1705863089346,-500.0,0.00042191,31]
[312413470,1705863089355,-1298.67,0.00042191,31]
[312413471,1705863089365,-508.6889693,0.00042191,31]
[312413472,1705863089375,-935.41,0.00042191,31]
[312413473,1705863089384,-500.0,0.00042191,31]
[312413474,1705863089394,-1952.53,0.00042191,31]
[312413475,1705863089404,-768.13,0.00042191,31]
[312413476,1705863089413,-500.0,0.00042191,31]
[312413477,1705863089423,-500.0,0.00042191,31]
[312413478,1705863089434,-890.92,0.00042191,31]
[312413479,1705863089444,-1310.81,0.00042191,31]
[312413480,1705863089454,-500.0,0.00042191,8]
[312413481,1705863089465,-563.09,0.00042191,31]
[312413482,1705863089475,-500.0,0.00042191,31]
[312413483,1705863089486,-1323.52,0.00042191,31]
[312413484,1705863089495,-679.03,0.00042191,31]
[312413485,1705863089505,-500.0,0.00042191,31]
[312413486,1705863089514,-501.68263208,0.00042191,31]
[312413487,1705863089524,-500.0,0.00042191,31]
[312413488,1705863089533,-701.31,0.00042191,31]
[312413489,1705863089543,-1411.28,0.00042191,31]
[312413490,1705863089553,-1476.08,0.00042191,31]
[312413491,1705863089563,-952.35,0.00042191,31]
[312413492,1705863089573,-836.49,0.00042191,31]
[312413493,1705863089583,-1119.54,0.00042191,31]
[312413494,1705863089592,-500.0,0.00042191,31]
[312413495,1705863089602,-2100.19,0.00042191,31]
[312413496,1705863089612,-1699.55,0.00042191,31]
[312413497,1705863089622,-1129.23,0.00042191,31]
[312413498,1705863089631,-500.0,0.00042191,31]
[312413499,1705863089640,-978.64,0.00042191,31]
[312413500,1705863089650,-500.0,0.00042191,31]
[312413501,1705863089663,-518.29,0.00042191,7]
[312413502,1705863089673,-178.79246678,0.00042191,31]
[312413503,1705863089682,-500.0,0.00042191,31]
[312413504,1705863089693,-500.0,0.00042191,31]
[312413505,1705863089702,-1088.8,0.00042191,31]
[312413506,1705863089713,-500.0,0.00042191,31]
[312413507,1705863089722,-1373.63,0.00042191,31]
[312413508,1705863089732,-500.0,0.00042191,31]
[312413509,1705863089742,-509.4,0.00042191,30]
[312413510,1705863089752,-1096.84,0.00042191,31]
[312413511,1705863089761,-784.37,0.00042191,31]
[312413512,1705863089771,-500.0,0.00042191,31]
[312413513,1705863089781,-786.57,0.00042191,31]
[312413514,1705863089790,-500.0,0.00042191,31]
[312413515,1705863089801,-611.25,0.00042191,31]
[312413516,1705863089810,-1153.04,0.00042191,31]
[312413517,1705863089821,-448.01087954,0.00042191,31]
[312413518,1705863089830,-500.0,0.00042191,31]
[312413519,1705863089840,-1019.37,0.00042191,31]
[312413520,1705863089849,-500.0,0.00042191,7]
[312413521,1705863089859,-1231.51,0.00042191,31]
[312413522,1705863089868,-500.0,0.00042191,31]
[312413523,1705863089878,-509.82393451,0.00042191,31]
[312413524,1705863089889,-500.0,0.00042191,31]
[312413525,1705863089898,-500.0,0.00042191,31]
[312413526,1705863089908,-1374.73,0.00042191,31]
[312413527,1705863089921,-510.98150539,0.00042191,31]
[312413528,1705863089930,-1208.34,0.00042191,31]
[312413529,1705863089940,-1371.39,0.00042191,31]
[312413530,1705863089950,-820.18,0.00042191,31]
[312413531,1705863089959,-1442.91,0.00042191,31]
[312413532,1705863089970,-706.05,0.00042191,31]
[312413533,1705863089979,-500.0,0.00042191,31]
[312413534,1705863089989,-500.0,0.00042191,31]
[312413535,1705863089999,-669.79,0.00042191,31]
[312413536,1705863090008,-875.23,0.00042191,31]
[312413537,1705863090018,-500.0,0.00042191,31]
[312413538,1705863090027,-500.0,0.00042191,31]
[312413539,1705863090037,-2613.26,0.00042191,7]
[312413540,1705863090046,-2071.44,0.00042191,31]
[312413541,1705863090055,-901.63,0.00042191,31]
[312413542,1705863090065,-500.0,0.00042191,31]
[312413543,1705863090074,-500.0,0.00042191,31]
[312413544,1705863090084,-344.9489585,0.00042191,31]
[312413545,1705863090093,-2191.06,0.00042191,7]
[312413546,1705863090102,-500.0,0.00042191,31]
[312413547,1705863090120,-500.0,0.00042191,31]
[312413548,1705863090129,-500.0,0.00042191,31]
[312413549,1705863090139,-500.0,0.00042191,31]
[312413550,1705863090149,-541.13565198,0.00042191,31]
[312413551,1705863090158,-500.0,0.00042191,31]
[312413552,1705863090168,-641.54,0.00042191,31]
[312413553,1705863090177,-500.0,0.00042191,31]
[312413554,1705863090187,-1346.51,0.00042191,31]
[312413555,1705863090197,-1341.6,0.00042191,2]
[312413556,1705863090207,-500.0,0.00042191,31]
[312413557,1705863090217,-500.0,0.00042191,31]
[312413558,1705863090229,-500.0,0.00042191,31]
[312413559,1705863090239,-500.0,0.00042191,31]
[312413560,1705863090249,-500.0,0.00042191,31]
[312413561,1705863090259,-500.0,0.00042191,31]
[312413562,1705863090269,-504.02,0.00042191,31]
[312413563,1705863090279,-504.43,0.00042191,31]
[312413564,1705863090288,-588.19,0.00042191,31]
[312413565,1705863090297,-787.71,0.00042191,31]
[312413566,1705863090307,-500.0,0.00042191,31]
[312413567,1705863090317,-500.0,0.00042191,31]
[312413568,1705863090327,-659.24,0.00042191,31]
[312413569,1705863090337,-500.0,0.00042191,31]
[312413570,1705863090346,-500.0,0.00042191,31]
[312413571,1705863090357,-505.1666598,0.00042191,31]
[312413572,1705863090366,-500.0,0.00042191,31]
[312413573,1705863090376,-646.69,0.00042191,31]
[312413574,1705863090387,-653.73,0.00042191,31]
[312413575,1705863090396,-500.0,0.00042191,31]
[312413576,1705863090405,-1246.47,0.00042191,31]
[312413577,1705863090416,-970.62,0.00042191,31]
[312413578,1705863090426,-1282.6,0.00042191,31]
[312413579,1705863090436,-500.0,0.00042191,31]
[312413580,1705863090446,-500.0,0.00042191,31]
[312413581,1705863090457,-1439.07,0.00042191,31]
[312413582,1705863090467,-512.9858793,0.00042191,31]
[312413583,1705863090477,-500.0,0.00042191,31]
[312413584,1705863090488,-884.92,0.00042191,31]
[312413585,1705863090499,-500.0,0.00042191,31]
[312413586,1705863090509,-500.0,0.00042191,31]
[312413587,1705863090519,-531.94930912,0.00042191,31]
[312413588,1705863090530,-601.71,0.00042191,31]
[312413589,1705863090540,-509.46169098,0.00042191,31]
[312413590,1705863090550,-631.29,0.00042191,31]
[312413591,1705863090560,-500.0,0.00042191,31]
[312413592,1705863090569,-658.35,0.00042191,31]
[312413593,1705863090579,-1363.05,0.00042191,31]
[312413594,1705863090588,-500.0,0.00042191,31]
[312413595,1705863090598,-500.0,0.00042191,31]
[312413596,1705863090608,-500.0,0.00042191,31]
[312413597,1705863090617,-1376.75,0.00042191,31]
[312413598,1705863090719,-734.65,0.00042191,31]
[312413599,1705863090730,-629.5,0.00042191,31]
[312413600,1705863090741,-878.27,0.00042191,31]
[312413601,1705863090752,-1485.3,0.00042191,31]
[312413602,1705863090762,-500.0,0.00042191,31]
[312413603,1705863090772,-500.0,0.00042191,31]
[312413604,1705863090782,-500.0,0.00042191,31]
[312413605,1705863090792,-500.0,0.00042191,31]
[312413606,1705863090802,-500.0,0.00042191,31]
[312413607,1705863090813,-269.58,0.00042191,31]
[312413608,1705863090822,-500.0,0.00042191,31]
[312413609,1705863090832,-1460.98,0.00042191,31]
[312413610,1705863090842,-795.53,0.00042191,31]
[312413611,1705863090851,-500.0,0.00042191,31]
[312413612,1705863090862,-500.0,0.00042191,31]
[312413613,1705863090872,-582.97,0.00042191,31]
[312413614,1705863090882,-500.0,0.00042191,31]
[312413615,1705863090892,-750.82,0.00042191,31]
[312413616,1705863090902,-1823.96,0.00042191,31]
[312413617,1705863090913,-500.0,0.00042191,31]
[312413618,1705863090922,-500.0,0.00042191,31]
[312413619,1705863090931,-1800.49,0.00042191,31]
[312413620,1705863090940,-500.0,0.00042191,31]
[312413621,1705863090949,-752.24,0.00042191,31]
[312413622,1705863090959,-500.0,0.00042191,31]
[312413623,1705863090969,-500.0,0.00042191,31]
[312413624,1705863090979,-491.79840548,0.00042191,31]
[312413625,1705863090989,-500.0,0.00042191,31]
[312413626,1705863091000,-1200.05,0.00042191,31]
[312413627,1705863091009,-500.0,0.00042191,31]
[312413628,1705863091018,-509.6631272,0.00042191,31]
[312413629,1705863091027,-1143.39,0.00042191,31]
[312413630,1705863091036,-798.25,0.00042191,31]
[312413631,1705863091045,-795.6,0.00042191,31]
[312413632,1705863091055,-500.0,0.00042191,31]
[312413633,1705863091064,-500.0,0.00042191,31]
[312413634,1705863091073,-510.75078669,0.00042191,31]
[312413635,1705863091083,-834.82,0.00042191,31]
[312413636,1705863091092,-500.0,0.00042191,31]
[312413637,1705863091101,-687.25,0.00042191,31]
[312413638,1705863091111,-500.0,0.00042191,31]
[312413639,1705863091120,-500.0,0.00042191,31]
[312413640,1705863091129,-625.95,0.00042191,31]
[312413641,1705863091140,-500.0,0.00042191,31]
[312413642,1705863091149,-500.0,0.00042191,31]
[312413643,1705863091159,-5545.7,0.00042191,31]
[312413644,1705863091168,-654.82,0.00042191,31]
[312413645,1705863091177,-500.0,0.00042191,31]
[312413646,1705863091187,-500.0,0.00042191,31]
[312413647,1705863091196,-627.52,0.00042191,31]
[312413648,1705863091205,-500.0,0.00042191,31]
[312413649,1705863091214,-500.0,0.00042191,31]
[312413650,1705863091223,-730.39,0.00042191,31]
[312413651,1705863091232,-500.0,0.00042191,31]
[312413652,1705863091242,-500.0,0.00042191,31]
[312413653,1705863091251,-3338.13,0.00042191,31]
[312413654,1705863091262,-500.0,0.00042191,31]
[312413655,1705863091271,-503.29955438,0.00042191,31]
[312413656,1705863091281,-500.0,0.00042191,31]
[312413657,1705863091291,-545.27,0.00042191,31]
[312413658,1705863091301,-764.44,0.00042191,31]
[312413659,1705863091310,-500.0,0.00042191,31]
[312413660,1705863091319,-1998.81,0.00042191,31]
[312413661,1705863091329,-1296.18,0.00042191,31]
[312413662,1705863091339,-500.0,0.00042191,31]
[312413663,1705863091349,-17260.95,0.00042191,31]
[312413664,1705863091359,-1596.09,0.00042191,31]
[312413665,1705863091370,-510.90577355,0.00042191,31]
[312413666,1705863091379,-708.09,0.00042191,31]
[312413667,1705863091389,-500.0,0.00042191,31]
[312413668,1705863091399,-898.19,0.00042191,31]
[312413669,1705863091409,-500.0,0.00042191,31]
[312413670,1705863091420,-570.27,0.00042191,31]
[312413671,1705863091429,-5449.29,0.00042191,31]
[312413672,1705863091439,-2144.35,0.00042191,31]
[312413673,1705863091448,-500.0,0.00042191,31]
[312413674,1705863091458,-500.0,0.00042191,31]
[312413675,1705863091467,-602.09,0.00042191,31]
[312413676,1705863091477,-500.0,0.00042191,31]
[312413677,1705863091486,-501.79,0.00042191,31]
[312413678,1705863091497,-500.0,0.00042191,31]
[312413679,1705863091507,-500.0,0.00042191,31]
[312413680,1705863091518,-754.18,0.00042191,31]
[312413681,1705863091528,-2566.96,0.00042191,31]
[312413682,1705863091537,-1568.48,0.00042191,31]
[312413683,1705863091547,-1393.43,0.00042191,31]
[312413684,1705863091557,-14027.91,0.00042191,31]
[312413685,1705863091567,-500.0,0.00042191,31]
[312413686,1705863091578,-927.78,0.00042191,31]
[312413687,1705863091587,-507.31070257,0.00042191,31]
[312413688,1705863091598,-500.0,0.00042191,31]
[312413689,1705863091608,-500.0,0.00042191,31]
[312413690,1705863091618,-500.0,0.00042191,31]
[312413691,1705863091628,-1492.21,0.00042191,31]
[312413692,1705863091637,-20533.6,0.00042191,31]
[312413693,1705863091648,-872.52,0.00042191,31]
[312413694,1705863091659,-866.78,0.00042191,31]
[312413695,1705863091669,-1000.0,0.00042191,31]
[312413696,1705863091679,-2714.75,0.00042191,31]
[312413697,1705863091690,-500.0,0.00042191,31]
[312413698,1705863091700,-2856.96,0.00042191,31]
[312413699,1705863091709,-500.0,0.00042191,31]
[312413700,1705863091720,-206.79744542,0.00042191,31]
[312413701,1705863091730,-500.0,0.00042191,31]
[312413702,1705863091741,-500.0,0.00042191,31]
[312413703,1705863091752,-500.0,0.00042191,31]
[312413704,1705863091763,-500.0,0.00042191,31]
[312413705,1705863091773,-585.59,0.00042191,31]
[312413706,1705863091783,-618.09,0.00042191,31]
[312413707,1705863091794,-500.0,0.00042191,31]
[312413708,1705863091804,-838.89,0.00042191,31]
[312413709,1705863091816,-38187.45,0.00042191,31]
[312413710,1705863091827,-500.0,0.00042191,31]
[312413711,1705863091836,-1815.38,0.00042191,31]
[312413712,1705863091846,-500.0,0.00042191,31]
[312413713,1705863091858,-3481.81,0.00042191,31]
[312413714,1705863091867,-506.98,0.00042191,31]
[312413715,1705863091878,-5257.49,0.00042191,31]
[312413716,1705863091888,-500.0,0.00042191,31]
[312413717,1705863091898,-500.0,0.00042191,31]
[312413718,1705863091908,-500.0,0.00042191,31]
[312413719,1705863091918,-500.0,0.00042191,31]
[312413720,1705863091927,-500.0,0.00042191,10]
[312413721,1705863091937,-522.8,0.00042191,31]
[312413722,1705863091948,-2462.22,0.00042191,31]
[312413723,1705863091957,-500.0,0.00042191,31]
[312413724,1705863091968,-2726.66,0.00042191,31]
[312413725,1705863091979,-500.0,0.00042191,31]
[312413726,1705863091989,-500.0,0.00042191,31]
[312413727,1705863091999,-500.0,0.00042191,31]
[312413728,1705863092009,-500.0,0.00042191,31]
[312413729,1705863092018,-500.0,0.00042191,31]
[312413730,1705863092028,-9964.37,0.00042191,31]
[312413731,1705863092039,-4646.58,0.00042191,31]
[312413732,1705863092049,-1256.11,0.00042191,31]
[312413733,1705863092059,-569.32,0.00042191,31]
[312413734,1705863092069,-563.04,0.00042191,31]
[312413735,1705863092078,-1625.17,0.00042191,31]
[312413736,1705863092087,-1597.74,0.00042191,31]
[312413737,1705863092097,-500.0,0.00042191,31]
[312413738,1705863092107,-1521.04,0.00042191,31]
[312413739,1705863092117,-945.78,0.00042191,31]
[312413740,1705863092126,-544.69,0.00042191,31]
[312413741,1705863092137,-1325.95,0.00042191,31]
[312413742,1705863092147,-500.0,0.00042191,31]
[312413743,1705863092157,-722.86,0.00042191,31]
[312413744,1705863092168,-1638.27,0.00042191,31]
[312413745,1705863092178,-2479.49,0.00042191,31]
[312413746,1705863092187,-2862.9,0.00042191,31]
[312413747,1705863092197,-781.61,0.00042191,31]
[312413748,1705863092207,-1020.59,0.00042191,31]
[312413749,1705863092217,-500.0,0.00042191,31]
[312413750,1705863092228,-500.0,0.00042191,31]
[312413751,1705863092238,-500.0,0.00042191,31]
[312413752,1705863092248,-13684.18,0.00042191,31]
[312413753,1705863092258,-500.0,0.00042191,31]
[312413754,1705863092268,-688.84,0.00042191,31]
[312413755,1705863092277,-1661.63,0.00042191,31]
[312413756,1705863092288,-500.0,0.00042191,31]
[312413757,1705863092298,-4867.58,0.00042191,31]
[312413758,1705863092308,-2128.7,0.00042191,31]
[312413759,1705863092318,-2953.84,0.00042191,31]
[312413760,1705863092328,-500.0,0.00042191,31]
[312413761,1705863092338,-500.0,0.00042191,31]
[312413762,1705863092348,-500.0,0.00042191,31]
[312413763,1705863092358,-500.0,0.00042191,31]
[312413764,1705863092368,-3193.31,0.00042191,31]
[312413765,1705863092379,-512.25221405,0.00042191,31]
[312413766,1705863092389,-687.4,0.00042191,31]
[312413767,1705863092400,-1215.74,0.00042191,31]
[312413768,1705863092410,-500.0,0.00042191,31]
[312413769,1705863092420,-3100.08,0.00042191,31]
[312413770,1705863092430,-500.0,0.00042191,31]
[312413771,1705863092440,-500.0,0.00042191,31]
[312413772,1705863092451,-500.0,0.00042191,31]
[312413773,1705863092460,-1445.08,0.00042191,31]
[312413774,1705863092470,-500.0,0.00042191,31]
[312413775,1705863092479,-4139.67,0.00042191,31]
[312413776,1705863092489,-598.34,0.00042191,31]
[312413777,1705863092500,-916.15,0.00042191,31]
[312413778,1705863092510,-500.0,0.00042191,31]
[312413779,1705863092520,-500.0,0.00042191,31]
[312413780,1705863092531,-500.0,0.00042191,31]
[312413781,1705863092541,-710.29,0.00042191,31]
[312413782,1705863092551,-5676.64,0.00042191,31]
[312413783,1705863092560,-500.0,0.00042191,31]
[312413784,1705863092570,-273.73167376,0.00042191,31]
[312413785,1705863092580,-2001.23,0.00042191,31]
[312413786,1705863092590,-2149.06,0.00042191,31]
[312413787,1705863092600,-940.56,0.00042191,31]
[312413788,1705863092609,-500.0,0.00042191,31]
[312413789,1705863092620,-4833.56,0.00042191,31]
[312413790,1705863092630,-506.94,0.00042191,31]
[312413791,1705863092640,-970.56,0.00042191,31]
[312413792,1705863092650,-2423.36,0.00042191,31]
[312413793,1705863092664,-1219.52,0.00042191,31]
[312413794,1705863092678,-1862.24,0.00042191,31]
[312413795,1705863092689,-500.0,0.00042191,31]
[312413796,1705863092699,-500.0,0.00042191,31]
[312413797,1705863092709,-500.0,0.00042191,31]
[312413798,1705863092719,-1187.95,0.00042191,31]
[312413799,1705863092730,-500.0,0.00042191,31]
[312413800,1705863092741,-219.05171914,0.00042191,31]
[312413801,1705863092752,-1829.93,0.00042191,31]
[312413802,1705863092762,-509.70109744,0.00042191,31]
[312413803,1705863092771,-500.0,0.00042191,31]
[312413804,1705863092781,-578.39,0.00042191,31]
[312413805,1705863092790,-14384.99,0.00042191,31]
[312413806,1705863092800,-1213.94,0.00042191,31]
[312413807,1705863092811,-639.46,0.00042191,31]
[312413808,1705863092821,-709.99,0.00042191,31]
[312413809,1705863092831,-300.0,0.00042191,31]
[312413810,1705863092841,-625.46,0.00042191,31]
[312413811,1705863092851,-3268.88,0.00042191,31]
[312413812,1705863092861,-648.75,0.00042191,31]
[312413813,1705863092871,-975.48,0.00042191,31]
[312413814,1705863092881,-755.56,0.00042191,31]
[312413815,1705863092890,-500.0,0.00042191,31]
[312413816,1705863092901,-1678.3,0.00042191,31]
[312413817,1705863092911,-2329.16,0.00042191,31]
[312413818,1705863092921,-500.0,0.00042191,31]
[312413819,1705863092931,-558.66,0.00042191,31]
[312413820,1705863092941,-181.04163574,0.00042191,31]
[312413821,1705863092951,-1401.81,0.00042191,31]
[312413822,1705863092961,-500.0,0.00042191,31]
[312413823,1705863092970,-1639.58,0.00042191,31]
[312413824,1705863092980,-894.48,0.00042191,31]
[312413825,1705863092989,-687.4,0.00042191,31]
[312413826,1705863093000,-1615.83,0.00042191,31]
[312413827,1705863093010,-1087.01,0.00042191,31]
[312413828,1705863093020,-500.0,0.00042191,31]
[312413829,1705863093030,-1031.2,0.00042191,31]
[312413830,1705863093039,-531.01,0.00042191,31]
[312413831,1705863093049,-2511.72,0.00042191,31]
[312413832,1705863093059,-1748.22,0.00042191,31]
[312413833,1705863093069,-4456.07,0.00042191,31]
[312413834,1705863093079,-277.84677708,0.00042191,31]
[312413835,1705863093089,-500.0,0.00042191,31]
[312413836,1705863093099,-500.0,0.00042191,31]
[312413837,1705863093109,-500.0,0.00042191,31]
[312413838,1705863093119,-1000.0,0.00042191,14]
[312413839,1705863093129,-3850.98,0.00042191,31]
[312413840,1705863093139,-579.06,0.00042191,31]
[312413841,1705863093150,-500.0,0.00042191,31]
[312413842,1705863093160,-3629.07,0.00042191,31]
[312413843,1705863093172,-3411.41,0.00042191,31]
[312413844,1705863093182,-500.0,0.00042191,31]
[312413845,1705863093194,-500.0,0.00042191,31]
[312413846,1705863093205,-726.07,0.00042191,31]
[312413847,1705863093216,-247.46420076,0.00042191,31]
[312413848,1705863093227,-5194.93,0.00042191,31]
[312413849,1705863093239,-1150.49,0.00042191,31]
[312413850,1705863093250,-3377.74,0.00042191,31]
[312413851,1705863093260,-1943.47,0.00042191,31]
[312413852,1705863093270,-1108.56,0.00042191,31]
[312413853,1705863093281,-513.50785554,0.00042191,31]
[312413854,1705863093291,-500.0,0.00042191,31]
[312413855,1705863093303,-500.0,0.00042191,31]
[312413856,1705863093313,-620.5,0.00042191,31]
[312413857,1705863093324,-1379.23,0.00042191,31]
[312413858,1705863093335,-500.0,0.00042191,31]
[312413859,1705863093346,-965.9,0.00042191,31]
[312413860,1705863093357,-825.6,0.00042191,31]
[312413861,1705863093367,-3791.82,0.00042191,31]
[312413862,1705863093378,-1532.88,0.00042191,31]
[312413863,1705863093389,-1797.81,0.00042191,31]
[312413864,1705863093400,-5971.46,0.00042191,31]
[312413865,1705863093411,-500.0,0.00042191,31]
[312413866,1705863093421,-500.0,0.00042191,31]
[312413867,1705863093431,-500.0,0.00042191,31]
[312413868,1705863093442,-504.38588754,0.00042191,7]
[312413869,1705863093451,-597.64,0.00042191,31]
[312413870,1705863093461,-500.0,0.00042191,31]
[312413871,1705863093470,-554.71,0.00042191,31]
[312413872,1705863093480,-509.78340345,0.00042191,31]
[312413873,1705863093490,-500.0,0.00042191,31]
[312413874,1705863093501,-843.24,0.00042191,31]
[312413875,1705863093511,-505.05,0.00042191,31]
[312413876,1705863093522,-1011.31,0.00042191,31]
[312413877,1705863093532,-500.0,0.00042191,31]
[312413878,1705863093544,-500.0,0.00042191,31]
[312413879,1705863093554,-500.0,0.00042191,31]
[312413880,1705863093564,-500.0,0.00042191,60]
[312413881,1705863093575,-1242.18,0.00042191,31]
[312413882,1705863093585,-500.0,0.00042191,15]
[312413883,1705863093596,-31979.27,0.00042191,31]
[312413884,1705863093606,-1802.54,0.00042191,31]
[312413885,1705863093617,-500.0,0.00042191,31]
[312413886,1705863093628,-724.71,0.00042191,31]
[312413887,1705863093638,-1209.74,0.00042191,31]
[312413888,1705863093648,-500.0,0.00042191,31]
[312413889,1705863093660,-2046.63,0.00042191,31]
[312413890,1705863093671,-1903.42,0.00042191,31]
[312413891,1705863093681,-4903.09,0.00042191,31]
[312413892,1705863093691,-500.0,0.00042191,31]
[312413893,1705863093702,-500.0,0.00042191,31]
[312413894,1705863093712,-500.0,0.00042191,31]
[312413895,1705863093724,-1146.65,0.00042191,31]
[312413896,1705863093735,-2442.87,0.00042191,31]
[312413897,1705863093745,-515.29455318,0.00042191,31]
[312413898,1705863093755,-500.0,0.00042191,31]
[312413899,1705863093765,-2526.05,0.00042191,31]
[312413900,1705863093775,-2162.48,0.00042191,31]
[312413901,1705863093786,-1626.96,0.00042191,31]
[312413902,1705863093796,-1000.0,0.00042191,2]
[312413903,1705863093806,-1812.71,0.00042191,31]
[312413904,1705863093817,-500.0,0.00042191,5]
[312413905,1705863093827,-500.0,0.00042191,31]
[312413906,1705863093837,-500.0,0.00042191,31]
[312413907,1705863093847,-509.47,0.00042191,31]
[312413908,1705863093857,-807.78,0.00042191,31]
[312413909,1705863093867,-638.08,0.00042191,31]
[312413910,1705863093877,-4768.84,0.00042191,31]
[312413911,1705863093887,-500.0,0.00042191,31]
[312413912,1705863093897,-500.0,0.00042191,31]
[312413913,1705863093908,-500.0,0.00042191,31]
[312413914,1705863093918,-23111.4,0.00042191,31]
[312413915,1705863093929,-475.05206733,0.00042191,31]
[312413916,1705863093939,-508.92915731,0.00042191,31]
[312413917,1705863093949,-641.88,0.00042191,31]
[312413918,1705863093959,-2345.39,0.00042191,31]
[312413919,1705863093969,-500.0,0.00042191,31]
[312413920,1705863093979,-1543.52,0.00042191,31]
[312413921,1705863093989,-500.0,0.00042191,31]
[312413922,1705863093999,-2539.24,0.00042191,31]
[312413923,1705863094010,-500.0,0.00042191,31]
[312413924,1705863094020,-4085.26,0.00042191,31]
[312413925,1705863094030,-500.0,0.00042191,31]
[312413926,1705863094040,-500.0,0.00042191,2]
[312413927,1705863094051,-500.0,0.00042191,31]
[312413928,1705863094061,-1053.53,0.00042191,31]
[312413929,1705863094072,-500.0,0.00042191,31]
[312413930,1705863094084,-1444.4,0.00042191,31]
[312413931,1705863094094,-1203.58,0.00042191,31]
[312413932,1705863094105,-8334.75,0.00042191,31]
[312413933,1705863094115,-1170.03,0.00042191,31]
[312413934,1705863094126,-3868.82,0.00042191,31]
[312413935,1705863094136,-751.65,0.00042191,31]
[312413936,1705863094146,-1290.9,0.00042191,31]
[312413937,1705863094160,-2604.67,0.00042191,31]
[312413938,1705863094171,-500.0,0.00042191,31]
[312413939,1705863094181,-3891.13,0.00042191,31]